fUSD/lending_fUSD_20260530
["ID","MTS","AMOUNT","RATE_DAILY","PERIOD"]
[423451624,1780126659000,-320.0,0.00040656,80]
[423451622,1780126659000,-320.0,0.00040612,79]
[423451621,1780126659000,-2420.19041286,0.000406,120]
[423451620,1780126659000,-150.0,0.00040558,120]
[423451615,1780126659000,-160.48441503,0.00040507,60]
[423451618,1780126659000,-2000.0,0.00040543,120]
[423451617,1780126659000,-320.0,0.0004052,77]
[423451616,1780126659000,-500.0,0.0004052,30]
[423451614,1780126659000,-1158.69,0.00040507,120]
[423451619,1780126659000,-2684.59,0.0004055,120]
[423451623,1780126659000,-150.0,0.00040623,120]
[423451625,1780126659000,-2000.0,0.00040663,120]
[423451626,1780126659000,-152.98104685,0.00040671,120]
[423451628,1780126659000,-223.78112818,0.00040671,120]
[423451629,1780126659000,-471.31035208,0.00040671,120]
[423451630,1780126659000,-247.33150494,0.00040688,120]
[423451632,1780126659000,-283.30245073,0.00040688,120]
[423451631,1780126659000,-427.10319257,0.00040688,120]
[423451635,1780126659000,-374.70761757,0.00040688,120]
[423451634,1780126659000,-995.3934496,0.00040688,120]
[423451633,1780126659000,-587.22812799,0.00040688,120]
[423451636,1780126659000,-634.97341609,0.00040688,120]
[423451627,1780126659000,-309.4501166,0.00040671,120]
[423451645,1780126660000,-150.0,0.00040688,120]
[423451646,1780126660000,-176.19,0.0004069,120]
[423451644,1780126660000,-795.16119766,0.00040688,120]
[423451642,1780126660000,-322.43857193,0.00040688,120]
[423451641,1780126660000,-607.92757582,0.00040688,120]
[423451638,1780126660000,-156.13637221,0.00040688,120]
[423451640,1780126660000,-295.04043598,0.00040688,120]
[423451639,1780126660000,-290.87451312,0.00040688,120]
[423451637,1780126660000,-1092.95460553,0.00040688,120]
[423451647,1780126660000,-500.0,0.0004069,60]
[423451643,1780126660000,-495.00413779,0.00040688,120]
[423451651,1780126660000,-150.0,0.0004072,120]
[423451648,1780126660000,-320.0,0.000407,81]
[423451661,1780126660000,-3057.8234587,0.000408,120]
[423451649,1780126660000,-62500.000001,0.000407,120]
[423451662,1780126660000,-1209.85978262,0.000408,120]
[423451660,1780126660000,-1000.0,0.000408,120]
[423451658,1780126660000,-153.0,0.000408,120]
[423451657,1780126660000,-1333.69890229,0.000408,60]
[423451659,1780126660000,-3281.26315404,0.000408,60]
[423451655,1780126660000,-2000.0,0.00040783,120]
[423451654,1780126660000,-1001.0,0.00040767,120]
[423451653,1780126660000,-2639.0540009,0.0004075,120]
[423451652,1780126660000,-164.92,0.00040734,120]
[423451650,1780126660000,-250.0,0.00040712,120]
[423451656,1780126660000,-320.0,0.00040785,83]
[423451670,1780126661000,-613.40610355,0.000408,120]
[423451673,1780126661000,-921.51087929,0.000408,120]
[423451671,1780126661000,-1891.76198718,0.000408,120]
[423451672,1780126661000,-1567.88526455,0.000408,120]
[423451669,1780126661000,-1820.39287168,0.000408,120]
[423451674,1780126661000,-3662.1348204,0.000408,120]
[423451667,1780126661000,-1322.87217428,0.000408,120]
[423451666,1780126661000,-1170.46986192,0.000408,120]
[423451665,1780126661000,-1422.69677778,0.000408,120]
[423451663,1780126661000,-3161.61500175,0.000408,120]
[423451664,1780126661000,-915.06362339,0.000408,120]
[423451668,1780126661000,-568.91712194,0.000408,120]
[423451675,1780126661000,-1084.22003449,0.000408,120]
[423451688,1780126661000,-12426.771,0.000409,120]
[423451677,1780126661000,-1317.23684948,0.000408,120]
[423451689,1780126661000,-12426.77,0.000409,120]
[423451676,1780126661000,-828.48954003,0.000408,120]
[423451685,1780126661000,-1000000.0,0.0004086,120]
[423451687,1780126661000,-320.0,0.00040866,85]
[423451684,1780126661000,-320.0,0.00040826,84]
[423451686,1780126661000,-4289.83,0.00040861,120]
[423451683,1780126661000,-530.34,0.00040812,30]
[423451681,1780126661000,-1501.02829132,0.000408,120]
[423451680,1780126661000,-1348.37821689,0.000408,120]
[423451679,1780126661000,-1050.43063047,0.000408,120]
[423451678,1780126661000,-1069.05480922,0.000408,120]
[423451682,1780126661000,-2500.0,0.0004081,120]
[423451697,1780126662000,-152.98104685,0.00040945,120]
[423451690,1780126662000,-362.08601208,0.000409,120]
[423451691,1780126662000,-4696.8,0.000409,120]
[423451692,1780126662000,-309.5096,0.000409,120]
[423451694,1780126662000,-429.90980042,0.000409,30]
[423451695,1780126662000,-2000.0,0.00040904,120]
[423451696,1780126662000,-320.0,0.00040944,86]
[423451698,1780126662000,-309.4501166,0.00040945,120]
[423451699,1780126662000,-223.78112818,0.00040945,120]
[423451693,1780126662000,-243.0,0.000409,120]
[423451701,1780126662000,-247.33150494,0.00040962,120]
[423451708,1780126662000,-1092.95460553,0.00040962,120]
[423451707,1780126662000,-634.97341609,0.00040962,120]
[423451709,1780126662000,-156.13637221,0.00040962,120]
[423451706,1780126662000,-374.70761757,0.00040962,120]
[423451700,1780126662000,-471.31035208,0.00040945,120]
[423451705,1780126662000,-995.3934496,0.00040962,120]
[423451704,1780126662000,-587.22812799,0.00040962,120]
[423451702,1780126662000,-427.10319257,0.00040962,120]
[423451703,1780126662000,-283.30245073,0.00040962,120]
[423451710,1780126663000,-290.87451312,0.00040962,120]
[423451712,1780126663000,-607.92757582,0.00040962,120]
[423451711,1780126663000,-295.04043598,0.00040962,120]
[423451713,1780126663000,-322.43857193,0.00040962,120]
[423451715,1780126663000,-795.16119766,0.00040962,120]
[423451717,1780126663000,-330.0,0.00040986,87]
[423451716,1780126663000,-320.0,0.00040982,87]
[423451719,1780126663000,-2000.0,0.0004099,120]
[423451721,1780126663000,-1000.0,0.00040999,120]
[423451714,1780126663000,-495.00413779,0.00040962,120]
[423451723,1780126663000,-800.0,0.00041,120]
[423451720,1780126663000,-2000.0,0.0004099,120]
[423451729,1780126663000,-461.6175679,0.00041,120]
[423451730,1780126663000,-1057.15187082,0.00041,30]
[423451726,1780126663000,-1549.81109642,0.00041,30]
[423451728,1780126663000,-1476.45896056,0.00041,120]
[423451718,1780126663000,-2000.0,0.0004099,120]
[423451725,1780126663000,-1042.18727049,0.00041,120]
[423451724,1780126663000,-2232.91449385,0.00041,30]
[423451722,1780126663000,-50000.0,0.00041,41]
[423451727,1780126663000,-709.23429085,0.00041,120]
[423451731,1780126664000,-572.08766055,0.00041,120]
[423451732,1780126664000,-930.0,0.00041,30]
[423451733,1780126664000,-1110.6816505,0.00041,30]
[423451734,1780126664000,-1176.12597789,0.00041,120]
[423451736,1780126664000,-161.0,0.00041,30]
[423451738,1780126664000,-1000.0,0.00041,120]
[423451737,1780126664000,-385.7346931,0.00041,120]
[423451740,1780126664000,-1000000.0,0.00041,120]
[423451739,1780126664000,-1000000.0,0.00041,120]
[423451742,1780126664000,-580785.2391886,0.00041,120]
[423451735,1780126664000,-464.14929955,0.00041,120]
[423451741,1780126664000,-1000000.0,0.00041,120]
[423451743,1780126690000,9595.92234971,7.289e-05,8]
[423451744,1780126700000,202.94711922,7.288e-05,2]
[423451745,1780126755000,150.0,7.069e-05,2]
[423451828,1780126980000,263.99770582,7.653e-05,7]
[423451853,1780127161000,158.39862348,7.288e-05,7]
[423451854,1780127162000,158.39862348,7.434e-05,7]
[423451855,1780127164000,158.39862348,7.653e-05,7]
[423451856,1780127165000,158.39862348,7.871e-05,7]
[423451857,1780127166000,158.39862348,8.163e-05,7]
[423451892,1780127432000,-500.0,7.665e-05,2]
[423451895,1780127432000,-1680.0,8.431e-05,2]
[423451893,1780127432000,-250.0,8.022e-05,2]
[423451894,1780127432000,-250.0,8.022e-05,2]
[423451897,1780127432000,-2351.0,9.274e-05,2]
[423451896,1780127432000,-16354.71380742,8.947e-05,2]
[423451899,1780127432000,-496.80173091,0.00010018,2]
[423451903,1780127432000,-150.0,0.00010961,2]
[423451900,1780127432000,-2517.0,0.00010201,2]
[423451891,1780127432000,-500.0,7.665e-05,2]
[423451901,1780127432000,-500.0,0.00010715,2]
[423451905,1780127432000,-1000.0,0.00010973,2]
[423451902,1780127432000,-200.0,0.00010744,2]
[423451904,1780127432000,-7142.37625265,0.00010962,2]
[423451906,1780127432000,-667.61866462,0.00011129,2]
[423451898,1780127432000,-198.98506562,0.0001,2]
[423451890,1780127432000,-500.0,7.665e-05,2]
[423451886,1780127432000,-299.95,7.665e-05,2]
[423451889,1780127432000,-500.0,7.665e-05,2]
[423451908,1780127432000,-160.86,0.00011524,2]
[423451873,1780127432000,-250.0,7.294e-05,2]
[423451874,1780127432000,-160.0,7.342e-05,2]
[423451875,1780127432000,-215.58360558,7.378e-05,2]
[423451876,1780127432000,-1542.50810902,7.662e-05,2]
[423451877,1780127432000,-1200.0,7.664e-05,2]
[423451878,1780127432000,-500.0,7.665e-05,2]
[423451882,1780127432000,-500.0,7.665e-05,2]
[423451881,1780127432000,-500.0,7.665e-05,2]
[423451880,1780127432000,-538.6817698,7.665e-05,2]
[423451883,1780127432000,-500.0,7.665e-05,2]
[423451879,1780127432000,-500.0,7.665e-05,2]
[423451884,1780127432000,-547.3711866,7.665e-05,2]
[423451887,1780127432000,-500.0,7.665e-05,2]
[423451885,1780127432000,-500.0,7.665e-05,2]
[423451888,1780127432000,-500.0,7.665e-05,2]
[423451907,1780127432000,-160.86,0.00011229,2]
[423451941,1780127432000,-1939.32,0.00012893,2]
[423451911,1780127432000,-150.0,0.00011874,2]
[423451931,1780127432000,-160.86,0.0001241,2]
[423451932,1780127432000,-729.61,0.00012467,2]
[423451930,1780127432000,-786.6,0.00012329,2]
[423451933,1780127432000,-729.61,0.00012764,2]
[423451936,1780127432000,-7562.54,0.00012893,2]
[423451934,1780127432000,-999.99,0.00012893,2]
[423451935,1780127432000,-9999.99,0.00012893,2]
[423451938,1780127432000,-150.99,0.00012893,2]
[423451937,1780127432000,-10958.49,0.00012893,2]
[423451940,1780127432000,-9999.99,0.00012893,2]
[423451939,1780127432000,-4999.99,0.00012893,2]
[423451943,1780127432000,-14452.9305311,0.00012922,2]
[423451945,1780127432000,-18009.96,0.00012932,2]
[423451942,1780127432000,-1600.0,0.00012921,2]
[423451910,1780127432000,-729.61,0.00011873,2]
[423451928,1780127432000,-160.86,0.00012115,2]
[423451929,1780127432000,-729.61,0.0001217,2]
[423451944,1780127432000,-150.0,0.00012928,2]
[423451926,1780127432000,-500.0,0.00012,2]
[423451927,1780127432000,-255.0,0.00012002,2]
[423451909,1780127432000,-160.86,0.0001182,2]
[423451913,1780127432000,-2000.0,0.0001194,2]
[423451915,1780127432000,-2000.0,0.00012,2]
[423451917,1780127432000,-2000.0,0.00012,2]
[423451919,1780127432000,-2000.0,0.00012,2]
[423451918,1780127432000,-1093.05,0.00012,2]
[423451916,1780127432000,-2000.0,0.00012,2]
[423451920,1780127432000,-1788.77,0.00012,2]
[423451921,1780127432000,-2000.0,0.00012,2]
[423451914,1780127432000,-2000.0,0.00012,2]
[423451923,1780127432000,-237.77,0.00012,2]
[423451922,1780127432000,-273.27,0.00012,2]
[423451912,1780127432000,-22505.23480475,0.00011929,2]
[423451925,1780127432000,-257.82,0.00012,2]
[423451924,1780127432000,-386.72,0.00012,2]
[423451980,1780127433000,-294.3,0.000138,2]
[423451978,1780127433000,-150.0,0.00013748,2]
[423451981,1780127433000,-150.0,0.00013813,2]
[423451982,1780127433000,-166.66,0.00013836,2]
[423451985,1780127433000,-150.0,0.00013879,2]
[423451987,1780127433000,-150.0,0.00013944,2]
[423451984,1780127433000,-150.0,0.00013862,2]
[423451986,1780127433000,-2834.94391922,0.00013888,2]
[423451988,1780127433000,-166.66,0.00013973,2]
[423451990,1780127433000,-150.0,0.00014009,2]
[423451989,1780127433000,-250.0,0.00014,2]
[423451991,1780127433000,-2500.0,0.00014018,2]
[423451983,1780127433000,-150.0,0.00013862,2]
[423451998,1780127433000,-500.0,0.00014117,2]
[423451992,1780127433000,-2834.94391922,0.00014033,2]
[423451995,1780127433000,-150.0,0.00014087,2]
[423451994,1780127433000,-150.0,0.00014074,2]
[423451996,1780127433000,-166.66,0.0001411,2]
[423451997,1780127433000,-500.0,0.00014117,2]
[423452000,1780127433000,-500.0,0.00014117,2]
[423451999,1780127433000,-500.0,0.00014117,2]
[423452001,1780127433000,-295.37631974,0.00014117,2]
[423452003,1780127433000,-88307.9139678,0.00014118,2]
[423452002,1780127433000,-121251.3991322,0.00014118,2]
[423452004,1780127433000,-663.67079421,0.00014135,2]
[423451977,1780127433000,-2834.94391922,0.00013744,2]
[423452006,1780127433000,-2834.94391922,0.00014177,2]
[423451993,1780127433000,-663.67079426,0.00014039,2]
[423451976,1780127433000,-166.66,0.00013699,2]
[423451958,1780127433000,-150.0,0.00013488,2]
[423451973,1780127433000,-500.0,0.00013698,2]
[423452008,1780127433000,-150.0,0.00014204,2]
[423451946,1780127433000,-729.61,0.00013061,2]
[423451948,1780127433000,-2000.0,0.00013432,2]
[423451947,1780127433000,-433.0,0.00013142,2]
[423451949,1780127433000,-150.0,0.00013488,2]
[423451950,1780127433000,-150.0,0.00013488,2]
[423451953,1780127433000,-150.0,0.00013488,2]
[423451951,1780127433000,-150.0,0.00013488,2]
[423451957,1780127433000,-150.0,0.00013488,2]
[423451952,1780127433000,-150.0,0.00013488,2]
[423451955,1780127433000,-107.9288034,0.00013488,2]
[423451956,1780127433000,-42.0711966,0.00013488,2]
[423451954,1780127433000,-150.0,0.00013488,2]
[423451975,1780127433000,-200.0,0.00013699,2]
[423451960,1780127433000,-2834.94391924,0.00013599,2]
[423451963,1780127433000,-500.0,0.00013698,2]
[423451962,1780127433000,-150.0,0.00013683,2]
[423451961,1780127433000,-150.0,0.00013618,2]
[423451964,1780127433000,-500.0,0.00013698,2]
[423451966,1780127433000,-500.0,0.00013698,2]
[423451969,1780127433000,-500.0,0.00013698,2]
[423451968,1780127433000,-378.92076892,0.00013698,2]
[423451967,1780127433000,-500.0,0.00013698,2]
[423451965,1780127433000,-500.0,0.00013698,2]
[423451970,1780127433000,-500.0,0.00013698,2]
[423451971,1780127433000,-775.51,0.00013698,2]
[423451972,1780127433000,-500.0,0.00013698,2]
[423451974,1780127433000,-588.76,0.00013698,2]
[423451959,1780127433000,-150.0,0.00013553,2]
[423452005,1780127433000,-150.0,0.00014139,2]
[423451979,1780127433000,-150.0,0.00013787,2]
[423452009,1780127433000,-221.90782458,0.00014205,2]
[423452043,1780127433000,-500.0,0.00014575,2]
[423452042,1780127433000,-1600.0,0.00014536,2]
[423452044,1780127433000,-500.0,0.00014575,2]
[423452045,1780127433000,-500.0,0.00014575,2]
[423452041,1780127433000,-150.0,0.0001453,2]
[423452046,1780127433000,-500.0,0.00014575,2]
[423452047,1780127433000,-512.05018733,0.00014575,2]
[423452049,1780127433000,-500.0,0.00014575,2]
[423452050,1780127433000,-500.0,0.00014575,2]
[423452051,1780127433000,-588.76,0.00014575,2]
[423452053,1780127433000,-150.0,0.00014595,2]
[423452052,1780127433000,-458.78724519,0.00014583,2]
[423452054,1780127433000,-5500.0,0.000146,5]
[423452040,1780127433000,-360.61357782,0.00014529,2]
[423452055,1780127433000,-2834.94391922,0.00014611,2]
[423452056,1780127433000,-150.0,0.00014612,2]
[423452059,1780127433000,-352.24623187,0.00014619,2]
[423452061,1780127433000,-500.0,0.00014619,2]
[423452060,1780127433000,-500.0,0.00014619,2]
[423452058,1780127433000,-663.67079421,0.00014613,2]
[423452063,1780127433000,-500.0,0.00014619,2]
[423452062,1780127433000,-500.0,0.00014619,2]
[423452064,1780127433000,-500.0,0.00014619,2]
[423452068,1780127433000,-500.0,0.00014619,2]
[423452066,1780127433000,-775.51,0.00014619,2]
[423452067,1780127433000,-775.51,0.00014619,2]
[423452065,1780127433000,-500.0,0.00014619,2]
[423452007,1780127433000,-1100.0,0.000142,5]
[423452057,1780127433000,-150.0,0.00014612,2]
[423452039,1780127433000,-458.78724523,0.0001452,2]
[423452048,1780127433000,-775.51,0.00014575,2]
[423452036,1780127433000,-4400.0,0.000145,5]
[423452010,1780127433000,-663.67079421,0.0001423,2]
[423452013,1780127433000,-150.0,0.00014237,2]
[423452014,1780127433000,-166.66,0.00014247,2]
[423452038,1780127433000,-154.61916634,0.00014519,2]
[423452011,1780127433000,-150.0,0.00014237,2]
[423452015,1780127433000,-150.0,0.0001427,2]
[423452017,1780127433000,-2834.94391922,0.00014322,2]
[423452019,1780127433000,-150.0,0.00014335,2]
[423452016,1780127433000,-2200.0,0.000143,5]
[423452018,1780127433000,-663.67079421,0.00014326,2]
[423452021,1780127433000,-150.0,0.00014387,2]
[423452020,1780127433000,-166.66,0.00014384,2]
[423452022,1780127433000,-150.0,0.000144,2]
[423452024,1780127433000,-663.67079421,0.00014422,2]
[423452012,1780127433000,-150.0,0.00014237,2]
[423452025,1780127433000,-150.0,0.00014465,2]
[423452023,1780127433000,-3300.0,0.000144,5]
[423452037,1780127433000,-663.67079421,0.00014517,2]
[423452069,1780127433000,-500.0,0.00014619,2]
[423452031,1780127433000,-500.0,0.00014499,2]
[423452034,1780127433000,-500.0,0.00014499,2]
[423452028,1780127433000,-500.0,0.00014499,2]
[423452035,1780127433000,-588.76,0.00014499,2]
[423452032,1780127433000,-775.51,0.00014499,2]
[423452030,1780127433000,-500.0,0.00014499,2]
[423452027,1780127433000,-500.0,0.00014499,2]
[423452033,1780127433000,-500.0,0.00014499,2]
[423452026,1780127433000,-2834.94391922,0.00014466,2]
[423452029,1780127433000,-500.0,0.00014499,2]
[423452089,1780127434000,-458.78724519,0.0001471,2]
[423452083,1780127434000,-553.36280109,0.00014699,2]
[423452094,1780127434000,-151.0,0.00014724,2]
[423452087,1780127434000,-1100.0,0.000147,5]
[423452088,1780127434000,-663.67079421,0.00014709,2]
[423452082,1780127434000,-500.0,0.00014699,2]
[423452086,1780127434000,-16113.78600354,0.000147,2]
[423452084,1780127434000,-588.76,0.00014699,2]
[423452085,1780127434000,-500.0,0.00014699,2]
[423452076,1780127434000,-150.0,0.00014661,2]
[423452073,1780127434000,-588.76,0.00014619,2]
[423452078,1780127434000,-581.97252477,0.00014699,2]
[423452080,1780127434000,-500.0,0.00014699,2]
[423452077,1780127434000,-150.0,0.00014687,2]
[423452075,1780127434000,-360.61357782,0.00014653,2]
[423452079,1780127434000,-500.0,0.00014699,2]
[423452074,1780127434000,-458.78724519,0.00014647,2]
[423452072,1780127434000,-588.76,0.00014619,2]
[423452071,1780127434000,-500.0,0.00014619,2]
[423452070,1780127434000,-500.0,0.00014619,2]
[423452090,1780127434000,-151.0,0.00014714,2]
[423452081,1780127434000,-775.51,0.00014699,2]
[423452093,1780127434000,-151.0,0.00014724,2]
[423452110,1780127434000,-2538.64096489,0.000148,2]
[423452092,1780127434000,-151.0,0.00014721,2]
[423452091,1780127434000,-158.47,0.00014714,2]
[423452114,1780127434000,-389.95126278,0.000148,2]
[423452116,1780127434000,-536.313,0.000148,5]
[423452112,1780127434000,-941.54125039,0.000148,2]
[423452111,1780127434000,-317.1374225,0.000148,2]
[423452108,1780127434000,-360.61357782,0.00014776,2]
[423452109,1780127434000,-150.0,0.00014791,2]
[423452107,1780127434000,-458.78724519,0.00014773,2]
[423452103,1780127434000,-151.0,0.00014752,2]
[423452106,1780127434000,-2834.94391922,0.00014755,2]
[423452113,1780127434000,-812.72909944,0.000148,2]
[423452105,1780127434000,-151.0,0.00014752,2]
[423452095,1780127434000,-151.0,0.00014724,2]
[423452101,1780127434000,-151.0,0.00014738,2]
[423452097,1780127434000,-150.0,0.00014726,2]
[423452099,1780127434000,-151.0,0.00014738,2]
[423452098,1780127434000,-151.0,0.00014738,2]
[423452115,1780127434000,-21.38803455,0.000148,5]
[423452096,1780127434000,-151.0,0.00014724,2]
[423452100,1780127434000,-151.0,0.00014738,2]
[423452102,1780127434000,-151.0,0.00014738,2]
[423452104,1780127434000,-151.72,0.00014752,2]
[423452138,1780127439000,-500.0,0.00014899,2]
[423452140,1780127439000,-500.0,0.00014899,2]
[423452139,1780127439000,-500.0,0.00014899,2]
[423452142,1780127439000,-500.0,0.00014899,2]
[423452141,1780127439000,-500.0,0.00014899,2]
[423452144,1780127439000,-500.0,0.00014899,2]
[423452145,1780127439000,-500.0,0.00014899,2]
[423452136,1780127439000,-500.0,0.00014899,2]
[423452148,1780127439000,-500.0,0.00014899,2]
[423452150,1780127439000,-500.0,0.00014899,2]
[423452147,1780127439000,-500.0,0.00014899,2]
[423452149,1780127439000,-500.0,0.00014899,2]
[423452143,1780127439000,-500.0,0.00014899,2]
[423452154,1780127439000,-500.0,0.00014899,2]
[423452125,1780127439000,-458.78724519,0.00014837,2]
[423452134,1780127439000,-7789.5016,0.00014886,2]
[423452133,1780127439000,-500.0,0.00014877,2]
[423452132,1780127439000,-588.76,0.00014859,2]
[423452131,1780127439000,-500.0,0.00014859,2]
[423452130,1780127439000,-775.51,0.00014859,2]
[423452129,1780127439000,-500.0,0.00014859,2]
[423452128,1780127439000,-500.0,0.00014859,2]
[423452126,1780127439000,-200.0,0.00014848,2]
[423452127,1780127439000,-150.0,0.00014856,2]
[423452123,1780127439000,-542.29896545,0.000148,5]
[423452124,1780127439000,-663.67079421,0.00014804,2]
[423452122,1780127439000,-10742.52400236,0.000147,2]
[423452120,1780127439000,-500.0,7.663e-05,2]
[423452151,1780127439000,-500.0,0.00014899,2]
[423452135,1780127439000,-500.0,0.00014899,2]
[423452152,1780127439000,-500.0,0.00014899,2]
[423452137,1780127439000,-500.0,0.00014899,2]
[423452158,1780127439000,-25000.0,0.000149,3]
[423452155,1780127439000,-500.0,0.00014899,2]
[423452187,1780127439000,-588.76,0.00014998,2]
[423452185,1780127439000,-775.51,0.00014998,2]
[423452184,1780127439000,-500.0,0.00014998,2]
[423452181,1780127439000,-150.0,0.00014986,2]
[423452183,1780127439000,-500.0,0.00014998,2]
[423452182,1780127439000,-151.0,0.00014997,2]
[423452180,1780127439000,-150.0,0.00014986,2]
[423452179,1780127439000,-150.00000001,0.00014986,2]
[423452178,1780127439000,-150.0,0.00014986,2]
[423452175,1780127439000,-152.0,0.00014948,3]
[423452177,1780127439000,-150.0,0.00014986,2]
[423452176,1780127439000,-150.0,0.00014986,2]
[423452173,1780127439000,-400.0,0.00014925,2]
[423452174,1780127439000,-400.0,0.00014925,2]
[423452186,1780127439000,-500.0,0.00014998,2]
[423452169,1780127439000,-400.0,0.000149,2]
[423452172,1780127439000,-2000.0,0.00014925,2]
[423452159,1780127439000,-458.78724519,0.000149,2]
[423452156,1780127439000,-500.0,0.00014899,2]
[423452160,1780127439000,-1956.0,0.000149,5]
[423452164,1780127439000,-1935.0,0.000149,5]
[423452163,1780127439000,-1243145.4724,0.000149,2]
[423452162,1780127439000,-2000.0,0.000149,2]
[423452157,1780127439000,-500.0,0.00014899,2]
[423452161,1780127439000,-33234.4339,0.000149,2]
[423452167,1780127439000,-360.61357782,0.000149,2]
[423452166,1780127439000,-1100.0,0.000149,5]
[423452168,1780127439000,-2834.94391922,0.000149,2]
[423452170,1780127439000,-150.0,0.000149,2]
[423452165,1780127439000,-663.67079421,0.000149,2]
[423452171,1780127439000,-150.0,0.00014921,2]
[423452233,1780127440000,-775.51,0.00014999,2]
[423452231,1780127440000,-775.51,0.00014999,2]
[423452232,1780127440000,-775.51,0.00014999,2]
[423452230,1780127440000,-775.51,0.00014999,2]
[423452227,1780127440000,-775.51,0.00014999,2]
[423452228,1780127440000,-775.51,0.00014999,2]
[423452225,1780127440000,-775.51,0.00014999,2]
[423452226,1780127440000,-775.51,0.00014999,2]
[423452234,1780127440000,-775.51,0.00014999,2]
[423452222,1780127440000,-775.51,0.00014999,2]
[423452229,1780127440000,-775.51,0.00014999,2]
[423452237,1780127440000,-500.0,0.00014999,2]
[423452244,1780127440000,-588.76,0.00014999,2]
[423452236,1780127440000,-500.0,0.00014999,2]
[423452242,1780127440000,-588.76,0.00014999,2]
[423452241,1780127440000,-588.76,0.00014999,2]
[423452243,1780127440000,-588.76,0.00014999,2]
[423452238,1780127440000,-588.76,0.00014999,2]
[423452239,1780127440000,-588.76,0.00014999,2]
[423452240,1780127440000,-588.76,0.00014999,2]
[423452246,1780127440000,-588.76,0.00014999,2]
[423452245,1780127440000,-588.76,0.00014999,2]
[423452247,1780127440000,-588.76,0.00014999,2]
[423452248,1780127440000,-588.76,0.00014999,2]
[423452223,1780127440000,-775.51,0.00014999,2]
[423452235,1780127440000,-775.51071349,0.00014999,2]
[423452224,1780127440000,-775.51,0.00014999,2]
[423452201,1780127440000,-500.0,0.00014999,2]
[423452215,1780127440000,-500.0,0.00014999,2]
[423452188,1780127440000,-500.0,0.00014998,2]
[423452189,1780127440000,-500.0,0.00014999,2]
[423452191,1780127440000,-500.0,0.00014999,2]
[423452190,1780127440000,-500.0,0.00014999,2]
[423452192,1780127440000,-500.0,0.00014999,2]
[423452194,1780127440000,-500.0,0.00014999,2]
[423452195,1780127440000,-500.0,0.00014999,2]
[423452193,1780127440000,-500.0,0.00014999,2]
[423452198,1780127440000,-500.0,0.00014999,2]
[423452196,1780127440000,-500.0,0.00014999,2]
[423452200,1780127440000,-500.0,0.00014999,2]
[423452199,1780127440000,-500.0,0.00014999,2]
[423452197,1780127440000,-500.0,0.00014999,2]
[423452250,1780127440000,-588.76,0.00014999,2]
[423452203,1780127440000,-500.0,0.00014999,2]
[423452204,1780127440000,-207.9347959,0.00014999,2]
[423452206,1780127440000,-500.0,0.00014999,2]
[423452208,1780127440000,-500.0,0.00014999,2]
[423452210,1780127440000,-500.0,0.00014999,2]
[423452212,1780127440000,-497.78987791,0.00014999,2]
[423452213,1780127440000,-500.0,0.00014999,2]
[423452221,1780127440000,-775.51,0.00014999,2]
[423452220,1780127440000,-775.51,0.00014999,2]
[423452218,1780127440000,-500.0,0.00014999,2]